bitfinex/quotes_SOLUSD_20250724
["timestamp","ask_amount","ask_price","bid_price","bid_amount"]
[1753364103151,26.0,187.13,187.01,6.2946]
[1753364103462,0.7,187.14,187.01,6.2946]
[1753364103463,13.57423478,187.07,187.01,19.86883478]
[1753364103634,26.0,187.11,186.96,2.07607376]
[1753364103635,13.57423478,187.03,186.96,1.5412]
[1753364103824,0.7,187.06,186.98,13.57423478]
[1753364104023,0.7,187.1,186.99,27.22478795]
[1753364104224,0.7,187.1,187.03,13.57423478]
[1753364104225,18.91980265,187.08,187.03,13.57423478]
[1753364104439,6.04498171,187.1,187.03,13.57423478]
[1753364104640,5.34335973,187.15,187.08,13.57423478]
[1753364104836,26.70877374,187.21,187.03,0.28432314]
[1753364104837,5.34302018,187.17,187.1,30.35891875]
[1753364105130,26.0,187.2,187.13,30.35891875]
[1753364105337,5.34130968,187.22,187.13,30.35891875]
[1753364105338,13.57423478,187.19,187.13,16.78468397]
[1753364105532,13.57423478,187.19,187.11,0.53444497]
[1753364105533,13.57423478,187.16,187.11,0.53444497]
[1753364105749,13.57423478,187.18,187.13,13.57423478]
[1753364106045,13.57423478,187.22,187.15,16.78468397]
[1753364106253,13.57423478,187.22,187.17,30.35891875]
[1753364106424,13.57423478,187.22,187.17,16.78468397]
[1753364106834,13.57423478,187.22,187.16,13.57423478]
[1753364107053,13.57423478,187.22,187.17,30.35891875]
[1753364107353,5.34075482,187.24,187.19,16.78468397]
[1753364107552,0.7,187.28,187.19,16.78468397]
[1753364107727,0.1,187.39,187.26,26.0]
[1753364107728,2.78500242,187.34,187.26,26.0]
[1753364107925,5.33674885,187.38,187.27,18.00867232]
[1753364108129,13.57423478,187.34,187.3,16.78468397]
[1753364108352,19.61229941,187.34,187.28,0.53395984]
[1753364108554,13.57423478,187.32,187.27,14.26423478]
[1753364108853,0.1,187.39,187.31,13.57423478]
[1753364109030,0.1,187.39,187.35,13.57423478]
[1753364109231,0.1,187.39,187.36,13.57423478]
[1753364109627,0.1,187.39,187.37,13.57423478]
[1753364109824,0.1,187.39,187.35,16.78468397]
[1753364109825,0.1,187.39,187.36,0.65]
[1753364110029,0.1,187.39,187.38,36.49261875]
[1753364110346,5.99289917,187.52,187.42,16.78468397]
[1753364110646,16.35578127,187.55,187.46,16.78468397]
[1753364110647,5.33191281,187.55,187.46,16.78468397]
[1753364110957,13.57423478,187.52,187.47,0.53341868]
[1753364111157,14.23423478,187.51,187.46,13.57423478]
[1753364111354,0.66,187.55,187.49,13.57423478]
[1753364111545,0.66,187.55,187.4,26.0]
[1753364111546,26.0,187.47,187.4,16.78468397]
[1753364111744,13.57423478,187.42,187.36,13.57423478]
[1753364111924,0.03,187.43,187.37,16.78468397]
[1753364112130,0.03,187.43,187.41,13.57423478]
[1753364112349,0.03,187.43,187.42,30.89247973]
[1753364112658,0.03,187.43,187.42,31.54247973]
[1753364112962,0.03,187.43,187.42,31.82680287]
[1753364113541,13.57423478,187.56,187.46,16.78468397]
[1753364113855,13.57423478,187.52,187.48,16.78468397]
[1753364114034,0.66,187.55,187.48,16.78468397]
[1753364114235,2.78093789,187.62,187.47,14.10765346]
[1753364114236,13.57423478,187.57,187.5,5.33333333]
[1753364114432,13.57423478,187.55,187.5,16.78468397]
[1753364114659,13.57423478,187.55,187.47,17.43468397]
[1753364114660,13.57423478,187.51,187.47,16.78468397]
[1753364114836,13.57423478,187.49,187.44,41.78]
[1753364115028,26.28432314,187.56,187.44,41.78]
[1753364115029,26.14216157,187.56,187.44,16.78468397]
[1753364115231,0.80216157,187.53,187.4,16.78468397]
[1753364115439,13.57423478,187.44,187.4,16.78468397]
[1753364115665,26.0,187.51,187.44,16.78468397]
[1753364115858,26.0,187.51,187.4,16.78468397]
[1753364115859,13.57423478,187.45,187.4,16.78468397]
[1753364116157,13.57423478,187.42,187.39,66.38092769]
[1753364116333,13.57423478,187.41,187.39,66.38092769]
[1753364116529,13.57423478,187.44,187.4,16.78468397]
[1753364116734,13.57423478,187.41,187.39,66.38092769]
[1753364116948,0.66,187.43,187.39,66.38092769]
[1753364116949,13.57423478,187.4,187.39,66.38092769]
[1753364117555,13.57423478,187.4,187.32,6.1272]
[1753364117556,14.23423478,187.4,187.32,6.1272]
[1753364117761,13.57423478,187.33,187.3,41.76]
[1753364117935,13.57423478,187.34,187.3,41.76]
[1753364118136,13.57423478,187.34,187.31,16.78468397]
[1753364118335,26.0,187.39,187.32,0.65]
[1753364118541,13.57423478,187.34,187.29,56.35891875]
[1753364118758,13.57423478,187.34,187.28,0.53395984]
[1753364118759,13.57423478,187.37,187.33,16.78468397]
[1753364118939,13.57423478,187.35,187.29,30.35891875]
[1753364119251,13.57423478,187.35,187.23,2.68112296]
[1753364119252,13.57423478,187.3,187.18,42.49]
[1753364119463,13.57423478,187.26,187.21,5.34151278]
[1753364119644,13.57423478,187.28,187.22,67.03092769]
[1753364119842,0.66,187.3,187.23,13.57423478]
[1753364120045,26.0,187.32,187.22,66.38092769]
[1753364120260,13.57423478,187.34,187.25,5.34045393]
[1753364120590,13.57423478,187.3,187.27,16.78468397]
[1753364120742,13.57423478,187.29,187.24,0.53407391]
[1753364120946,5.62203249,187.35,187.22,66.38092769]
[1753364120947,5.99770935,187.35,187.27,13.57423478]
[1753364121166,13.57423478,187.34,187.29,13.57423478]
[1753364121461,26.66,187.35,187.25,1.18404539]
[1753364121462,13.57423478,187.3,187.25,13.57423478]
[1753364121642,13.57423478,187.29,187.23,30.89302119]
[1753364122044,13.57423478,187.31,187.25,13.57423478]
[1753364122272,13.57423478,187.3,187.25,13.57423478]
[1753364122475,0.66,187.29,187.22,109.16561166]
[1753364122642,13.57423478,187.31,187.26,13.57423478]
[1753364122849,5.99646405,187.39,187.3,13.57423478]
[1753364123147,1.645,187.51,187.33,13.57423478]
[1753364123148,13.57423478,187.38,187.33,13.57423478]
[1753364123454,0.66,187.42,187.34,14.10802361]
[1753364123660,41.84,187.43,187.34,14.10802361]
[1753364123661,41.84,187.43,187.38,13.57423478]
[1753364123844,13.57423478,187.42,187.36,0.53373185]
[1753364124038,56.07423478,187.43,187.37,13.57423478]
[1753364124239,56.07423478,187.43,187.36,0.53373185]
[1753364124470,55.41423478,187.43,187.38,13.57423478]
[1753364124761,55.41423478,187.43,187.37,5.33695288]
[1753364124762,13.57423478,187.43,187.36,0.53373185]
[1753364124944,13.57423478,187.42,187.36,13.57423478]
[1753364125367,0.66,187.46,187.39,13.57423478]
[1753364125666,41.82,187.49,187.42,13.57423478]
[1753364125667,13.57423478,187.47,187.42,13.57423478]
[1753364125964,5.33332411,187.51,187.44,16.78468397]
[1753364125965,0.03,187.51,187.44,16.78468397]
[1753364126143,0.03,187.51,187.43,1.18353251]
[1753364126144,0.03,187.51,187.48,13.57423478]
[1753364126342,0.03,187.51,187.5,5.33333333]
[1753364126538,0.03,187.51,187.49,0.53336177]
[1753364126770,0.03,187.51,187.47,13.57423478]
[1753364127164,0.03,187.51,187.5,13.57423478]
[1753364127468,0.03,187.51,187.48,13.57423478]
[1753364127665,0.03,187.51,187.49,13.57423478]
[1753364127847,0.03,187.51,187.47,0.53341868]
[1753364128042,0.03,187.51,187.5,13.57423478]
[1753364128275,0.03,187.51,187.5,31.54225208]
[1753364128447,5.32960762,187.64,187.52,16.78468397]
[1753364128645,5.98915353,187.65,187.58,13.57423478]
[1753364128844,22.98054674,187.63,187.58,13.57423478]
[1753364129068,9.40631196,187.63,187.61,13.57423478]
[1753364129345,9.40631196,187.63,187.59,0.65]
[1753364129346,9.40631196,187.63,187.62,14.22423478]
[1753364129541,9.40631196,187.63,187.55,68.08432314]
[1753364129542,9.40631196,187.63,187.58,0.65]
[1753364129851,9.40631196,187.63,187.62,13.57423478]
[1753364130258,9.40631196,187.63,187.6,16.78468397]
[1753364130573,9.40631196,187.63,187.61,0.65]
[1753364130751,9.40631196,187.63,187.6,13.57423478]
[1753364130954,9.40631196,187.63,187.59,13.57423478]
[1753364131161,13.57423478,187.62,187.56,0.53316272]
[1753364131469,13.57423478,187.62,187.33,80.30739362]
[1753364131470,13.57423478,187.57,187.49,13.57423478]
[1753364131663,13.57423478,187.51,187.44,0.53350405]
[1753364131970,13.57423478,187.48,187.41,5.98587479]
[1753364132150,0.66,187.51,187.42,13.57423478]
[1753364132151,13.57423478,187.47,187.42,13.57423478]
[1753364132338,13.57423478,187.44,187.39,6.5369]
[1753364132546,18.90928528,187.44,187.39,6.5369]
[1753364132745,18.90928528,187.44,187.33,0.65]
[1753364132747,13.57423478,187.41,187.33,0.65]
[1753364132965,13.57423478,187.4,187.33,0.65]
[1753364133167,0.66,187.43,187.33,0.65]
[1753364133168,13.57423478,187.39,187.33,0.65]
[1753364133372,13.57423478,187.36,187.3,6.1633]
[1753364133561,0.66,187.4,187.31,16.78468397]
[1753364133877,0.66,187.4,187.35,0.06]
[1753364134070,13.57423478,187.39,187.35,0.06]
[1753364134272,13.57423478,187.4,187.39,0.06]
[1753364134572,13.57423478,187.4,187.35,0.06]
[1753364134573,19.19473721,187.4,187.35,0.06]
[1753364134752,13.57423478,187.36,187.35,0.06]
[1753364135269,13.57423478,187.36,187.23,0.53410244]
[1753364135270,14.23423478,187.36,187.23,19.5652381]
[1753364135611,26.0,187.38,187.23,19.5652381]
[1753364135612,0.66,187.35,187.23,5.99100332]
[1753364135759,13.57423478,187.3,187.23,0.65]
[1753364136074,13.57423478,187.28,187.22,67.00050922]
[1753364136272,13.57423478,187.31,187.25,13.57423478]
[1753364136575,13.57423478,187.31,187.22,48.61923096]
[1753364136576,13.57423478,187.27,187.22,48.61923096]
[1753364136782,5.33890582,187.31,187.21,88.80299031]
[1753364136783,13.57423478,187.24,187.21,53.10274259]
[1753364137084,13.57423478,187.23,187.2,0.2]
[1753364137383,13.57423478,187.22,187.2,0.2]
[1753364137582,26.0,187.29,187.2,0.2]
[1753364137583,13.57423478,187.21,187.2,0.2]
[1753364137951,0.66,187.24,187.2,0.2]
[1753364138151,13.57423478,187.22,187.2,0.2]
[1753364138452,0.28432314,187.3,187.2,0.2]
[1753364138453,18.91582978,187.21,187.2,0.2]
[1753364138663,19.63582978,187.21,187.2,0.2]
[1753364139248,19.63582978,187.21,187.19,0.06]
[1753364139249,0.28432314,187.2,187.19,0.06]
[1753364139464,0.72,187.2,187.19,0.06]
[1753364139670,14.29423478,187.2,187.19,0.06]
[1753364140069,41.76,187.22,187.19,0.06]
[1753364140257,13.57423478,187.2,187.19,0.06]
[1753364140475,32.4903499,187.2,187.19,0.06]
[1753364140678,33.49467304,187.2,187.19,0.06]
[1753364140888,13.57423478,187.12,187.07,13.57423478]
[1753364141065,13.57423478,187.16,187.1,13.57423478]
[1753364141267,13.57423478,187.16,187.08,0.67]
[1753364141479,13.57423478,187.16,187.11,13.57423478]
[1753364141683,13.57423478,187.21,187.15,13.57423478]
[1753364141873,13.57423478,187.21,187.12,1.20441641]
[1753364141874,0.72,187.28,187.16,1.2043022]
[1753364142080,0.72,187.28,187.2,13.57423478]
[1753364142278,13.57423478,187.26,187.21,13.57423478]
[1753364142471,41.72,187.29,187.23,13.57423478]
[1753364142672,41.72,187.29,187.18,0.53424511]
[1753364142673,41.72,187.29,187.25,13.57423478]
[1753364142866,13.57423478,187.34,187.28,13.57423478]
[1753364143065,0.72,187.36,187.29,13.57423478]
[1753364143066,13.57423478,187.35,187.29,13.57423478]
[1753364143287,13.57423478,187.35,187.3,13.57423478]
[1753364143491,13.57423478,187.35,187.29,13.57423478]
[1753364143665,13.57423478,187.36,187.3,13.57423478]
[1753364143871,13.57423478,187.35,187.29,13.57423478]
[1753364144085,13.57423478,187.35,187.3,13.57423478]
[1753364144388,14.29423478,187.37,187.31,13.57423478]
[1753364144576,13.57423478,187.37,187.31,13.57423478]
[1753364144779,13.57423478,187.4,187.34,13.57423478]
[1753364145086,0.72,187.41,187.3,0.67]
[1753364145087,14.29423478,187.41,187.3,1.20390282]
[1753364145291,18.28476419,187.4,187.35,18.28476419]
[1753364145480,41.7,187.44,187.37,18.28476419]
[1753364145681,59.98476419,187.44,187.38,18.28476419]
[1753364145984,59.98476419,187.44,187.39,18.28476419]
[1753364146288,59.98476419,187.44,187.32,0.81816896]
[1753364146289,18.28476419,187.42,187.33,16.78468397]
[1753364146582,18.28476419,187.43,187.37,18.28476419]
[1753364146890,18.28476419,187.41,187.36,18.28476419]
[1753364147571,6.0553375,187.43,187.33,23.32651989]
[1753364147572,18.28476419,187.39,187.33,18.28476419]
[1753364147965,18.28476419,187.39,187.31,0.53387432]
[1753364147966,18.28476419,187.39,187.34,18.28476419]
[1753364148169,6.0553375,187.43,187.35,18.28476419]
[1753364148373,6.0553375,187.43,187.36,18.28476419]
[1753364148699,18.28476419,187.4,187.32,0.53384582]
[1753364148895,18.28476419,187.38,187.31,16.78468397]
[1753364149097,18.28476419,187.38,187.32,18.28476419]
[1753364149496,0.72,187.4,187.31,18.28476419]
[1753364149497,18.28476419,187.37,187.31,18.28476419]
[1753364149801,0.72,187.36,187.27,16.78468397]
[1753364149975,18.28476419,187.36,187.31,18.28476419]
[1753364150304,18.28476419,187.36,187.27,17.31867232]
[1753364150305,18.28476419,187.32,187.27,18.28476419]
[1753364150504,18.28476419,187.32,187.24,0.67]
[1753364150505,18.28476419,187.31,187.25,35.06944816]
[1753364150790,18.28476419,187.31,187.24,0.67]
[1753364150791,18.28476419,187.3,187.24,18.28476419]
[1753364151096,18.28476419,187.28,187.23,18.28476419]
[1753364151302,19.00476419,187.28,187.22,18.28476419]
[1753364151606,18.28476419,187.25,187.21,0.06]
[1753364151890,18.28476419,187.24,187.21,0.06]
[1753364152101,18.28476419,187.22,187.21,0.06]
[1753364152588,24.34607387,187.22,187.21,0.06]
[1753364153276,26.0,187.24,187.21,0.06]
[1753364153592,18.28476419,187.23,187.21,0.06]
[1753364153784,18.28476419,187.22,187.21,0.06]
[1753364154576,19.00476419,187.22,187.21,0.06]
[1753364155084,18.28476419,187.22,187.21,0.06]
[1753364155299,41.54,187.28,187.21,0.06]
[1753364155475,18.28476419,187.26,187.21,0.06]
[1753364155674,18.28476419,187.26,187.21,18.34476419]
[1753364155874,18.28476419,187.22,187.21,0.06]
[1753364156793,24.34607387,187.22,187.21,0.06]
[1753364157783,65.86607387,187.22,187.21,0.06]
[1753364159005,59.80476419,187.22,187.21,0.06]
[1753364159300,65.14607387,187.22,187.21,0.06]
[1753364159478,59.80476419,187.22,187.21,0.06]
[1753364159677,65.86607387,187.22,187.21,0.06]
[1753364160003,91.86607387,187.22,187.21,0.06]
[1753364160304,13.34778317,187.3,187.21,0.06]
[1753364160520,0.72,187.28,187.21,0.06]
[1753364160675,18.28476419,187.27,187.22,0.67]
[1753364160875,18.28476419,187.27,187.21,0.06]
[1753364160876,18.28476419,187.24,187.21,0.06]
[1753364161072,18.28476419,187.22,187.21,0.06]
[1753364161616,19.28908733,187.22,187.21,1e-08]
[1753364161910,0.28432314,187.18,187.17,1e-08]
[1753364162117,26.0,187.15,187.04,0.67]
[1753364162280,18.28476419,187.08,187.04,0.67]
[1753364162480,16.78468397,187.22,187.07,18.28476419]
[1753364162678,18.28476419,187.1,187.04,18.95476419]
[1753364162903,18.28476419,187.08,187.01,5.34730535]
[1753364163109,18.28476419,187.08,187.02,18.95476419]
[1753364163279,18.28476419,187.03,186.97,0.67]
[1753364163607,18.28476419,187.02,186.97,0.67]
[1753364163822,41.46,187.06,186.97,23.63300459]
[1753364163992,18.28476419,187.07,187.02,18.28476419]
[1753364164196,18.28476419,187.07,186.98,1.20481655]
[1753364164197,18.28476419,187.03,186.97,6.0182404]
[1753364164387,18.28476419,186.99,186.93,0.67]
[1753364164708,18.99089961,187.1,186.89,18.95476419]
[1753364164709,18.28476419,186.95,186.89,18.95476419]
[1753364164915,18.28476419,186.94,186.85,0.06]
[1753364165077,5.34912303,186.95,186.87,18.28476419]
[1753364165078,18.28476419,186.92,186.87,18.28476419]
[1753364165277,18.28476419,186.92,186.85,0.06]
[1753364165278,18.28476419,186.89,186.85,0.06]
[1753364165591,41.56,186.93,186.87,18.28476419]
[1753364165787,59.84476419,186.93,186.88,18.28476419]
[1753364165998,18.28476419,186.92,186.85,6.08187072]
[1753364166206,59.84476419,186.93,186.85,0.73]
[1753364166377,18.28476419,186.91,186.85,0.73]
[1753364166581,18.28476419,186.9,186.85,0.73]
[1753364166815,18.28476419,186.91,186.86,18.28476419]
[1753364167123,41.52,186.93,186.88,18.28476419]
[1753364167278,26.0,186.99,186.89,0.67]
[1753364167483,0.51,187.0,186.89,0.67]
[1753364167484,18.28476419,186.97,186.89,0.67]
[1753364167679,0.65216157,187.03,186.94,18.28476419]
[1753364167680,18.28476419,186.99,186.94,18.28476419]
[1753364167990,0.51,187.03,186.88,0.28432314]
[1753364167991,41.52,187.0,186.91,18.95476419]
[1753364168319,26.0,186.97,186.86,0.67]
[1753364168483,18.28476419,186.9,186.85,0.06]
[1753364168681,67.52,186.94,186.85,5.41180292]
[1753364168882,18.28476419,186.91,186.86,18.28476419]
[1753364169076,41.52,186.94,186.89,18.28476419]
[1753364169296,41.52,187.01,186.93,13.48502993]
[1753364169507,13.48502993,187.03,186.98,13.48502993]
[1753364169686,41.52,187.04,187.01,13.48502993]
[1753364170106,55.02502993,187.08,187.02,13.48502993]
[1753364170287,55.02502993,187.08,187.04,13.48502993]
[1753364170288,41.54,187.08,187.04,13.48502993]
[1753364170490,0.51,187.16,187.07,13.48502993]
[1753364170688,13.48502993,187.17,187.11,13.48502993]
[1753364170889,55.02502993,187.17,187.12,13.48502993]
[1753364171302,41.54,187.17,187.14,13.48502993]
[1753364171502,41.54,187.17,187.13,0.67]
[1753364171708,41.54,187.17,187.14,14.15502993]
[1753364172096,13.48502993,187.18,187.09,5.87925521]
[1753364172298,13.48502993,187.18,187.12,13.48502993]
[1753364172901,13.48502993,187.16,187.1,0.67]
[1753364173219,18.32750937,187.19,187.13,18.32750937]
[1753364173416,18.32750937,187.19,187.1,0.67]
[1753364173720,41.56,187.21,187.06,26.0]
[1753364173721,18.32750937,187.15,187.06,26.67]
[1753364173890,18.32750937,187.14,187.08,18.32750937]
[1753364174089,59.84750937,187.16,187.11,18.32750937]
[1753364174312,59.84750937,187.16,187.12,18.32750937]
[1753364174313,41.52,187.16,187.12,18.32750937]
[1753364174511,41.52,187.16,187.09,0.67]
[1753364174512,18.32750937,187.14,187.09,18.32750937]
[1753364174813,5.34335023,187.15,187.09,18.32750937]
[1753364175109,18.32750937,187.12,187.07,18.32750937]
[1753364175414,18.32750937,187.14,187.09,18.32750937]
[1753364175602,18.32750937,187.14,187.08,18.32750937]
[1753364175914,18.32750937,187.09,187.03,29.71271643]
[1753364176118,18.32750937,187.09,187.04,18.32750937]
[1753364176315,18.32750937,187.09,187.04,18.99750937]
[1753364176501,0.51,187.09,187.01,18.32750937]
[1753364176705,18.32750937,187.06,187.01,18.32750937]
[1753364176920,18.32750937,187.07,187.01,0.67]
[1753364177104,13.36023832,187.13,187.01,0.67]
[1753364177105,16.65573022,187.16,187.06,18.32750937]
[1753364177302,59.82750937,187.12,187.07,18.32750937]
[1753364177509,59.82750937,187.12,187.05,18.32750937]
[1753364177510,18.32750937,187.1,187.05,18.32750937]
[1753364177698,41.5,187.12,187.08,18.32750937]
[1753364178324,18.32750937,187.11,187.06,18.38750937]
[1753364178525,18.32750937,187.07,187.06,0.06]
[1753364179023,65.15310192,187.07,187.06,0.06]
[1753364179603,41.48,187.07,187.06,0.06]
[1753364179808,65.15310192,187.07,187.06,0.06]
[1753364180418,65.66310192,187.07,187.06,0.06]
[1753364180645,65.94742506,187.07,187.06,1e-08]
[1753364180925,65.66310192,187.07,187.06,1e-08]
[1753364181139,65.94742506,187.07,187.06,1e-08]
[1753364181428,65.94742506,187.07,186.92,2.2813]
[1753364181429,0.28432314,187.02,186.87,24.47850937]
[1753364181611,18.32750937,186.9,186.85,18.38750937]
[1753364181811,18.32750937,186.9,186.86,0.67]
[1753364182033,41.44,186.91,186.87,18.99750937]
[1753364182327,41.44,186.91,186.85,0.06]
[1753364182328,59.76750937,186.91,186.85,18.38750937]
[1753364182502,41.44,186.91,186.87,18.32750937]
[1753364182707,26.0,186.95,186.9,18.32750937]
[1753364182708,41.42,186.95,186.9,18.32750937]
[1753364182999,41.42,186.95,186.85,5.41179372]
[1753364183000,41.93,186.95,186.86,18.32750937]
[1753364183201,18.32750937,186.92,186.86,18.32750937]
[1753364183428,18.32750937,186.89,186.85,0.06]
[1753364183801,18.32750937,186.87,186.85,0.06]
[1753364184020,18.32750937,186.89,186.85,0.06]
[1753364184204,31.34903212,186.95,186.87,18.32750937]
[1753364184412,41.42,186.94,186.88,18.99750937]
[1753364184616,41.42,186.94,186.89,18.32750937]
[1753364184617,59.74750937,186.94,186.89,18.32750937]
[1753364184923,59.74750937,186.94,186.91,18.32750937]
[1753364184924,41.42,186.94,186.91,18.32750937]
[1753364185122,18.32750937,186.93,186.87,0.67]
[1753364185324,18.32750937,186.93,186.85,0.06]
[1753364185325,18.32750937,186.89,186.85,0.06]
[1753364185519,18.32750937,186.88,186.85,0.06]
[1753364186216,41.4,186.9,186.86,0.67]
[1753364186415,41.4,186.9,186.85,0.06]
[1753364186416,41.4,186.93,186.89,18.32750937]
[1753364187226,65.07713159,186.93,186.87,18.32750937]
[1753364187433,65.07713159,186.93,186.85,0.06]
[1753364187434,18.32750937,186.92,186.86,18.32750937]
[1753364187617,65.07713159,186.93,186.88,18.32750937]
[1753364187934,0.51,186.97,186.89,0.67]
[1753364188113,18.32750937,186.95,186.9,18.32750937]
[1753364188736,18.32750937,186.94,186.89,18.32750937]
[1753364188932,18.32750937,186.94,186.88,18.32750937]
[1753364189132,18.32750937,186.92,186.85,0.73]
[1753364189317,59.64750937,186.92,186.87,18.32750937]
[1753364189634,18.32750937,186.88,186.85,0.06]
[1753364189814,18.32750937,186.86,186.85,0.06]
[1753364190218,41.32,186.87,186.85,0.06]
[1753364190532,40.82,186.87,186.85,0.06]
[1753364190718,18.32750937,186.86,186.85,0.06]
[1753364190919,24.18910949,186.86,186.85,0.06]
[1753364191855,5.35160012,186.86,186.85,0.06]
[1753364192149,24.47343263,186.86,186.85,0.06]
[1753364192441,24.47343263,186.86,186.78,0.06]
[1753364192442,26.0,186.79,186.78,0.06]
[1753364192753,85.64750937,186.79,186.78,0.06]
[1753364192916,91.51111502,186.79,186.78,0.06]
[1753364193119,85.64750937,186.79,186.78,0.06]
[1753364193338,41.32,186.79,186.78,0.06]
[1753364193914,41.28,186.82,186.78,19.05750937]
[1753364194116,41.28,186.82,186.78,18.38750937]
[1753364194332,18.32750937,186.8,186.78,0.06]
[1753364194530,59.66750937,186.79,186.78,0.06]
[1753364194943,26.0,186.82,186.78,18.38750937]
[1753364194944,41.34,186.8,186.78,18.38750937]
[1753364195233,41.34,186.8,186.78,0.06]
[1753364195675,13.50332325,186.79,186.78,0.06]
[1753364196148,14.01332325,186.79,186.78,0.06]
[1753364196435,13.50332325,186.79,186.78,0.06]
[1753364196749,41.34,186.8,186.78,0.06]
[1753364197059,13.50332325,186.85,186.8,5.35331905]
[1753364197344,13.50332325,186.83,186.78,18.91715767]
[1753364197529,41.32,186.84,186.82,13.50332325]
[1753364197716,5.34930993,186.94,186.83,14.17332325]
[1753364197916,13.50332325,186.9,186.85,13.50332325]
[1753364198138,41.32,186.89,186.85,14.17332325]
[1753364198321,41.32,186.89,186.86,14.17332325]
[1753364198527,41.32,186.89,186.82,0.28432314]
[1753364198724,41.32,186.89,186.86,13.50332325]
[1753364198920,41.32,186.89,186.86,14.19332325]
[1753364199243,54.82332325,186.89,186.83,13.50332325]
[1753364199550,54.82332325,186.89,186.81,22.8276721]
[1753364199551,41.32,186.89,186.85,13.50332325]
[1753364199832,26.0,186.93,186.88,13.50332325]
[1753364199833,41.32,186.93,186.88,13.50332325]
[1753364200045,41.32,186.93,186.88,14.19332325]
[1753364200225,38.54,186.98,186.88,14.19332325]
[1753364200226,38.54,186.98,186.92,13.50332325]
[1753364200422,38.54,186.98,186.88,16.78468397]
[1753364200423,41.3,186.97,186.93,13.50332325]
[1753364200618,41.3,186.97,186.94,13.50332325]
[1753364200836,41.3,186.97,186.95,13.50332325]
[1753364201024,41.3,186.97,186.91,16.78468397]
[1753364201025,41.3,187.0,186.96,0.69]
[1753364201230,13.50332325,186.99,186.94,13.50332325]
[1753364201636,13.50332325,186.97,186.91,17.47468397]
[1753364201818,13.50332325,186.97,186.91,14.19332325]
[1753364201819,41.3,186.97,186.91,14.19332325]
[1753364202021,13.50332325,186.95,186.89,13.50332325]
[1753364202325,13.50332325,186.92,186.87,16.78468397]
[1753364202520,41.28,186.92,186.88,13.50332325]
[1753364202738,41.28,186.92,186.89,14.19332325]
[1753364203040,41.28,186.92,186.87,13.50332325]
[1753364203342,13.50332325,186.9,186.82,16.78468397]
[1753364203540,13.50332325,186.9,186.84,30.28800722]
[1753364203736,13.50332325,186.9,186.85,13.50332325]
[1753364203926,60.13321843,186.92,186.87,13.50332325]
[1753364204123,41.26,186.93,186.89,13.50332325]
[1753364204440,41.26,186.94,186.91,13.50332325]
[1753364204621,13.50332325,186.92,186.86,17.47468397]
[1753364204826,41.26,186.94,186.86,0.69]
[1753364205029,13.50332325,186.92,186.86,0.69]
[1753364205230,18.85328535,186.92,186.87,13.50332325]
[1753364205554,13.50332325,186.91,186.85,13.50332325]
[1753364205736,41.28,186.9,186.85,13.50332325]
[1753364205924,41.28,186.9,186.86,13.50332325]
[1753364206124,41.28,186.9,186.86,14.19332325]
[1753364206447,60.13388793,186.9,186.85,13.50332325]
[1753364206754,13.50332325,186.88,186.83,13.50332325]
[1753364207049,13.50332325,186.87,186.82,13.50332325]
[1753364207347,13.50332325,186.85,186.8,6.0893]
[1753364207522,13.50332325,186.85,186.79,13.50332325]
[1753364207716,13.50332325,186.83,186.78,13.56332325]
[1753364207921,0.51,186.87,186.78,0.06]
[1753364207922,13.50332325,186.81,186.78,0.06]
[1753364208124,41.24,186.82,186.78,0.06]
[1753364208125,13.50332325,186.79,186.78,0.06]
[1753364208529,18.8569289,186.79,186.78,0.06]
[1753364208942,5.35360565,186.79,186.78,0.06]
[1753364209256,18.8569289,186.79,186.78,0.06]
[1753364209423,13.50332325,186.79,186.78,0.06]
[1753364209852,30.16255699,186.88,186.78,0.06]
[1753364210024,5.35131374,186.87,186.82,13.50332325]
[1753364210344,41.22,186.86,186.83,13.50332325]
[1753364210548,41.26,186.86,186.83,14.19332325]
[1753364210730,41.26,186.86,186.84,13.50332325]
[1753364211054,0.51,186.93,186.84,13.50332325]
[1753364211055,13.50332325,186.93,186.86,16.78468397]